fUST/lending_fUST_20250302
["ID","MTS","AMOUNT","RATE_DAILY","PERIOD"]
[355103387,1740894640044,-500.0,0.00023359,2]
[355103388,1740894640053,-500.0,0.00023359,2]
[355103390,1740894640063,-500.0,0.00023359,2]
[355103391,1740894640073,-500.0,0.00023359,2]
[355103392,1740894640082,-609.88,0.00023359,2]
[355103393,1740894640091,-500.0,0.00023359,2]
[355103394,1740894640101,-1022.76,0.00023359,2]
[355103396,1740894640111,-528.97,0.00023359,2]
[355103398,1740894640121,-994.48,0.00023359,2]
[355103400,1740894640130,-2091.18,0.00023359,2]
[355103402,1740894640140,-500.0,0.00023359,2]
[355103404,1740894640150,-25740.58,0.00023359,2]
[355103405,1740894640159,-500.0,0.00023359,2]
[355103407,1740894640169,-2516.16,0.00023359,2]
[355103409,1740894640179,-500.0,0.00023359,2]
[355103411,1740894640188,-500.0,0.00023359,2]
[355103413,1740894640198,-500.0,0.00023359,2]
[355103415,1740894640207,-1349.49,0.00023359,2]
[355103417,1740894640216,-500.0,0.00023359,2]
[355103419,1740894640226,-839.47,0.00023359,2]
[355103421,1740894640235,-1236.27,0.00023359,2]
[355103423,1740894640245,-500.0,0.0002336,2]
[355103425,1740894640254,-500.0,0.0002336,2]
[355103426,1740894640264,-500.0,0.0002336,2]
[355103428,1740894640273,-500.0,0.0002336,2]
[355103430,1740894640283,-500.0,0.0002336,2]
[355103432,1740894640292,-500.0,0.0002336,2]
[355103434,1740894640302,-500.0,0.0002336,2]
[355103436,1740894640311,-539.4,0.0002336,2]
[355103438,1740894640321,-500.0,0.0002336,2]
[355103440,1740894640331,-500.0,0.0002336,2]
[355103442,1740894640341,-500.0,0.0002336,2]
[355103444,1740894640350,-500.0,0.0002336,2]
[355103446,1740894640360,-500.0,0.0002336,2]
[355103448,1740894640369,-500.0,0.0002336,2]
[355103450,1740894640379,-500.0,0.0002336,2]
[355103452,1740894640389,-500.0,0.0002336,2]
[355103454,1740894640398,-500.0,0.0002336,2]
[355103456,1740894640408,-500.0,0.0002336,2]
[355103458,1740894640418,-500.0,0.0002336,2]
[355103459,1740894640428,-500.0,0.0002336,2]
[355103460,1740894640437,-500.0,0.0002336,2]
[355103461,1740894640447,-500.0,0.0002336,2]
[355103462,1740894640457,-500.0,0.0002336,2]
[355103463,1740894640466,-637.06,0.0002336,2]
[355103464,1740894640475,-500.0,0.0002336,2]
[355103465,1740894640485,-500.0,0.0002336,2]
[355103466,1740894640494,-516.64,0.0002336,2]
[355103467,1740894640503,-500.0,0.0002336,2]
[355103468,1740894640513,-500.0,0.0002336,2]
[355103469,1740894640523,-500.0,0.0002336,2]
[355103470,1740894640532,-500.0,0.0002336,2]
[355103471,1740894640542,-500.0,0.0002336,2]
[355103472,1740894640552,-500.0,0.0002336,2]
[355103473,1740894640561,-500.0,0.0002336,2]
[355103474,1740894640571,-500.0,0.0002336,2]
[355103475,1740894640581,-500.0,0.0002336,2]
[355103476,1740894640591,-500.0,0.0002336,2]
[355103477,1740894640600,-500.0,0.0002336,2]
[355103478,1740894640610,-500.0,0.0002336,2]
[355103479,1740894640619,-500.0,0.0002336,2]
[355103480,1740894640629,-500.0,0.0002336,2]
[355103481,1740894640638,-807.94,0.0002336,2]
[355103483,1740894640648,-500.0,0.0002336,2]
[355103485,1740894640658,-500.0,0.00023361,2]
[355103487,1740894640668,-500.0,0.00023361,2]
[355103489,1740894640678,-500.0,0.00023361,2]
[355103490,1740894640688,-500.0,0.00023361,2]
[355103491,1740894640698,-500.0,0.00023361,2]
[355103492,1740894640707,-500.0,0.00023424,2]
[355103494,1740894640717,-500.0,0.00023424,2]
[355103496,1740894640726,-230.09646708,0.00023569,2]
[355103497,1740894640736,-455.58859226,0.00023632,2]
[355103499,1740894640746,-336.72510326,0.00023632,2]
[355103500,1740894640755,-500.0,0.00023633,2]
[355103501,1740894640764,-531.87,0.00023633,2]
[355103502,1740894640775,-500.0,0.00023633,2]
[355103503,1740894640785,-1260.93,0.00023633,2]
[355103504,1740894640795,-273.13,0.00023633,2]
[355103505,1740894640804,-2797.01,0.00023633,2]
[355103506,1740894640814,-1487.55,0.00023633,2]
[355103507,1740894640824,-500.0,0.00023633,2]
[355103508,1740894640833,-558.8,0.00023633,2]
[355103509,1740894640843,-645.06,0.00023633,2]
[355103510,1740894640854,-500.0,0.00023633,2]
[355103511,1740894640866,-500.0,0.00023633,2]
[355103512,1740894640876,-1729.44,0.00023633,2]
[355103513,1740894640885,-500.0,0.00023633,2]
[355103514,1740894640895,-1716.37,0.00023633,2]
[355103515,1740894640904,-893.33,0.00023633,2]
[355103516,1740894640914,-500.0,0.00023633,2]
[355103517,1740894640924,-780.24,0.00023633,2]
[355103518,1740894640935,-2108.12,0.00023633,2]
[355103519,1740894640944,-500.0,0.00023633,2]
[355103520,1740894640954,-500.0,0.00023633,2]
[355103521,1740894640964,-500.0,0.00023633,2]
[355103522,1740894640974,-500.0,0.00023633,2]
[355103523,1740894640984,-197.02,0.00023633,2]
[355103524,1740894640993,-500.0,0.00023633,2]
[355103525,1740894641003,-609.88,0.00023633,2]
[355103526,1740894641012,-500.0,0.00023633,2]
[355103527,1740894641022,-1022.76,0.00023633,2]
[355103528,1740894641032,-528.97,0.00023633,2]
[355103529,1740894641041,-994.48,0.00023633,2]
[355103530,1740894641051,-2091.18,0.00023633,2]
[355103531,1740894641061,-500.0,0.00023633,2]
[355103532,1740894641071,-25740.58,0.00023633,2]
[355103533,1740894641080,-500.0,0.00023633,2]
[355103534,1740894641090,-2516.16,0.00023633,2]
[355103535,1740894641100,-500.0,0.00023633,2]
[355103536,1740894641109,-263.53,0.00023633,2]
[355103537,1740894641119,-500.0,0.00023633,2]
[355103538,1740894641129,-1349.49,0.00023633,2]
[355103539,1740894641146,-500.0,0.00023633,2]
[355103540,1740894641156,-839.47,0.00023633,2]
[355103541,1740894641165,-1236.27,0.00023633,2]
[355103542,1740894641175,-500.0,0.00023634,2]
[355103543,1740894641184,-500.0,0.00023634,2]
[355103544,1740894641194,-500.0,0.00023634,2]
[355103545,1740894641205,-500.0,0.00023634,2]
[355103546,1740894641214,-500.0,0.00023634,2]
[355103547,1740894641223,-500.0,0.00023634,2]
[355103548,1740894641233,-509.09,0.00023634,2]
[355103549,1740894641243,-500.0,0.00023634,2]
[355103550,1740894641253,-500.0,0.00023634,2]
[355103551,1740894641262,-500.0,0.00023634,2]
[355103552,1740894641272,-500.0,0.00023634,2]
[355103553,1740894641282,-500.0,0.00023634,2]
[355103554,1740894641292,-500.0,0.00023634,2]
[355103555,1740894641302,-500.0,0.00023634,2]
[355103556,1740894641313,-500.0,0.00023634,2]
[355103557,1740894641324,-500.0,0.00023634,2]
[355103558,1740894641334,-431.65,0.00023634,2]
[355103559,1740894641344,-500.0,0.00023634,2]
[355103560,1740894641353,-162.25,0.00023634,2]
[355103561,1740894641362,-500.0,0.00023634,2]
[355103562,1740894641372,-351.16,0.00023634,2]
[355103563,1740894641381,-500.0,0.00023634,2]
[355103564,1740894641391,-500.0,0.00023634,2]
[355103565,1740894641401,-500.0,0.00023634,2]
[355103566,1740894641410,-500.0,0.00023634,2]
[355103567,1740894641420,-500.0,0.00023634,2]
[355103568,1740894641430,-500.0,0.00023634,2]
[355103569,1740894641440,-500.0,0.00023634,2]
[355103570,1740894641449,-500.0,0.00023634,2]
[355103571,1740894641459,-807.94,0.00023634,2]
[355103572,1740894641468,-500.0,0.00023634,2]
[355103573,1740894641478,-500.0,0.00023635,2]
[355103574,1740894641488,-238.5,0.00023635,2]
[355103575,1740894641497,-500.0,0.00023635,2]
[355103576,1740894641507,-950.89792195,0.000239,2]
[355103577,1740894641516,-500.0,0.00023907,2]
[355103578,1740894641525,-531.87,0.00023907,2]
[355103579,1740894641535,-321.0,0.00023907,2]
[355103580,1740894641544,-1260.93,0.00023907,2]
[355103581,1740894641553,-2797.01,0.00023907,2]
[355103582,1740894641564,-1487.55,0.00023907,2]
[355103583,1740894641573,-500.0,0.00023907,2]
[355103584,1740894641583,-558.8,0.00023907,2]
[355103585,1740894641592,-500.0,0.00023907,2]
[355103586,1740894641602,-500.0,0.00023907,2]
[355103587,1740894641612,-1729.44,0.00023907,2]
[355103588,1740894641621,-269.07,0.00023907,2]
[355103589,1740894641631,-1716.37,0.00023907,2]
[355103590,1740894641640,-893.33,0.00023907,2]
[355103591,1740894641650,-500.0,0.00023907,2]
[355103592,1740894641659,-780.24,0.00023907,2]
[355103593,1740894641668,-2108.12,0.00023907,2]
[355103594,1740894641678,-500.0,0.00023907,2]
[355103595,1740894641687,-500.0,0.00023907,2]
[355103596,1740894641696,-500.0,0.00023907,2]
[355103597,1740894641705,-500.0,0.00023907,2]
[355103598,1740894641715,-609.88,0.00023907,2]
[355103599,1740894641724,-500.0,0.00023907,2]
[355103600,1740894641733,-1022.76,0.00023907,2]
[355103601,1740894641743,-528.97,0.00023907,2]
[355103602,1740894641754,-994.48,0.00023907,2]
[355103603,1740894641763,-2091.18,0.00023907,2]
[355103604,1740894641772,-411.37,0.00023907,2]
[355103605,1740894641781,-25740.58,0.00023907,2]
[355103606,1740894641791,-500.0,0.00023907,2]
[355103607,1740894641801,-2516.16,0.00023907,2]
[355103608,1740894641811,-500.0,0.00023907,2]
[355103609,1740894641820,-500.0,0.00023907,2]
[355103610,1740894641829,-1349.49,0.00023907,2]
[355103611,1740894641839,-500.0,0.00023907,2]
[355103612,1740894641850,-839.47,0.00023907,2]
[355103613,1740894641864,-1236.27,0.00023907,2]
[355103614,1740894641874,-500.0,0.00023908,2]
[355103615,1740894641883,-500.0,0.00023908,2]
[355103616,1740894641893,-449.37,0.00023908,2]
[355103617,1740894641903,-212.28,0.00023908,2]
[355103618,1740894641914,-500.0,0.00023908,2]
[355103619,1740894641924,-500.0,0.00023908,2]
[355103620,1740894641935,-224.91,0.00023908,2]
[355103621,1740894641944,-500.0,0.00023908,2]
[355103622,1740894641954,-500.0,0.00023908,2]
[355103623,1740894641964,-613.88,0.00023908,2]
[355103624,1740894641973,-500.0,0.00023908,2]
[355103625,1740894641982,-500.0,0.00023908,2]
[355103626,1740894641992,-500.0,0.00023908,2]
[355103627,1740894642002,-500.0,0.00023908,2]
[355103628,1740894642011,-500.0,0.00023908,2]
[355103629,1740894642023,-500.0,0.00023908,2]
[355103630,1740894642032,-432.43,0.00023908,2]
[355103631,1740894642042,-807.94,0.00023908,2]
[355103632,1740894642051,-500.0,0.00023908,2]
[355103633,1740894642061,-500.0,0.00023909,2]
[355103634,1740894642071,-500.0,0.0002394,2]
[355103635,1740894642081,-500.0,0.0002394,2]
[355103636,1740894642091,-500.0,0.0002394,2]
[355103637,1740894642100,-500.0,0.0002394,2]
[355103638,1740894642109,-500.0,0.0002394,2]
[355103639,1740894642119,-500.0,0.0002394,2]
[355103640,1740894642128,-608.56374532,0.0002394,2]
[355103641,1740894642138,-500.0,0.0002394,2]
[355103642,1740894642147,-500.0,0.00023948,2]
[355103643,1740894642158,-226.57894889,0.00024081,2]
[355103644,1740894642167,-500.0,0.00024181,2]
[355103645,1740894642178,-531.87,0.00024181,2]
[355103646,1740894642187,-1260.93,0.00024181,2]
[355103647,1740894642197,-2797.01,0.00024181,2]
[355103648,1740894642207,-1487.55,0.00024181,2]
[355103649,1740894642218,-500.0,0.00024181,2]
[355103650,1740894642228,-558.8,0.00024181,2]
[355103651,1740894642237,-500.0,0.00024181,2]
[355103652,1740894642248,-500.0,0.00024181,2]
[355103653,1740894642261,-1729.44,0.00024181,2]
[355103654,1740894642273,-1716.37,0.00024181,2]
[355103655,1740894642282,-893.33,0.00024181,2]
[355103656,1740894642291,-500.0,0.00024181,2]
[355103657,1740894642301,-780.24,0.00024181,2]
[355103658,1740894642312,-2108.12,0.00024181,2]
[355103659,1740894642322,-500.0,0.00024181,2]
[355103660,1740894642332,-282.37,0.00024181,2]
[355103661,1740894642342,-236.32,0.00024181,2]
[355103662,1740894642352,-500.0,0.00024181,2]
[355103663,1740894642362,-609.88,0.00024181,2]
[355103664,1740894642372,-500.0,0.00024181,2]
[355103665,1740894642381,-1022.76,0.00024181,2]
[355103666,1740894642391,-528.97,0.00024181,2]
[355103667,1740894642400,-994.48,0.00024181,2]
[355103668,1740894642411,-2091.18,0.00024181,2]
[355103669,1740894642421,-25740.58,0.00024181,2]
[355103670,1740894642436,-273.3,0.00024181,2]
[355103671,1740894642446,-2516.16,0.00024181,2]
[355103672,1740894642455,-500.0,0.00024181,2]
[355103673,1740894642465,-500.0,0.00024181,2]
[355103674,1740894642475,-1349.49,0.00024181,2]
[355103675,1740894642485,-500.0,0.00024181,2]
[355103676,1740894642495,-839.47,0.00024181,2]
[355103677,1740894642504,-1236.27,0.00024181,2]
[355103678,1740894642514,-500.0,0.00024182,2]
[355103679,1740894642524,-500.0,0.00024182,2]
[355103680,1740894642534,-500.0,0.00024182,2]
[355103681,1740894642544,-500.0,0.00024182,2]
[355103682,1740894642554,-500.0,0.00024182,2]
[355103683,1740894642564,-400.0,0.00024182,2]
[355103684,1740894642573,-500.0,0.00024182,2]
[355103685,1740894642583,-306.24,0.00024182,2]
[355103686,1740894642593,-500.0,0.00024182,2]
[355103687,1740894642603,-500.0,0.00024182,2]
[355103688,1740894642612,-500.0,0.00024182,2]
[355103689,1740894642622,-500.0,0.00024182,2]
[355103690,1740894642632,-807.94,0.00024182,2]
[355103692,1740894642642,-500.0,0.00024182,2]
[355103693,1740894642651,-500.0,0.00024183,2]
[355103694,1740894642661,-19629.85965445,0.00024254,2]
[355103695,1740894642670,-160.0,0.00024254,2]
[355103696,1740894642679,-160.0,0.00024254,2]
[355103697,1740894642689,-160.0,0.00024254,2]
[355103698,1740894642699,-204.04207536,0.000244,3]
[355103699,1740894642709,-500.0,0.00024455,2]
[355103700,1740894642718,-531.87,0.00024455,2]
[355103701,1740894642728,-1260.93,0.00024455,2]
[355103702,1740894642738,-2797.01,0.00024455,2]
[355103703,1740894642748,-1487.55,0.00024455,2]
[355103705,1740894642758,-500.0,0.00024455,2]
[355103707,1740894642768,-558.8,0.00024455,2]
[355103708,1740894642777,-500.0,0.00024455,2]
[355103710,1740894642786,-500.0,0.00024455,2]
[355103711,1740894642796,-1729.44,0.00024455,2]
[355103712,1740894642805,-1716.37,0.00024455,2]
[355103713,1740894642815,-893.33,0.00024455,2]
[355103714,1740894642825,-500.0,0.00024455,2]
[355103715,1740894642834,-780.24,0.00024455,2]
[355103716,1740894642844,-2108.12,0.00024455,2]
[355103717,1740894642856,-500.0,0.00024455,2]
[355103718,1740894642867,-500.0,0.00024455,2]
[355103719,1740894642876,-609.88,0.00024455,2]
[355103720,1740894642885,-500.0,0.00024455,2]
[355103721,1740894642895,-1022.76,0.00024455,2]
[355103722,1740894642907,-528.97,0.00024455,2]
[355103723,1740894642917,-994.48,0.00024455,2]
[355103724,1740894642928,-2091.18,0.00024455,2]
[355103725,1740894642938,-25740.58,0.00024455,2]
[355103726,1740894642949,-2516.16,0.00024455,2]
[355103727,1740894642959,-500.0,0.00024455,2]
[355103728,1740894642969,-500.0,0.00024455,2]
[355103729,1740894642979,-1349.49,0.00024455,2]
[355103730,1740894642990,-500.0,0.00024455,2]
[355103731,1740894643000,-839.47,0.00024455,2]
[355103732,1740894643010,-1236.27,0.00024455,2]
[355103733,1740894643021,-500.0,0.00024456,2]
[355103735,1740894643030,-530.88,0.00024456,2]
[355103737,1740894643041,-500.0,0.00024456,2]
[355103739,1740894643051,-500.0,0.00024456,2]
[355103741,1740894643061,-500.0,0.00024456,2]
[355103743,1740894643072,-500.0,0.00024456,2]
[355103745,1740894643081,-500.0,0.00024456,2]
[355103747,1740894643091,-500.0,0.00024456,2]
[355103749,1740894643102,-500.0,0.00024456,2]
[355103751,1740894643112,-500.0,0.00024456,2]
[355103752,1740894643122,-807.94,0.00024456,2]
[355103754,1740894643132,-500.0,0.00024457,2]
[355103756,1740894643143,-420.0,0.00024478,2]
[355103757,1740894643153,-624.51642806,0.00024614,2]
[355103759,1740894643163,-500.0,0.00024658,2]
[355103761,1740894643174,-500.0,0.00024658,2]
[355103763,1740894643184,-500.0,0.00024658,2]
[355103764,1740894643194,-500.0,0.00024658,2]
[355103766,1740894643204,-500.0,0.00024658,2]
[355103768,1740894643214,-500.0,0.00024658,2]
[355103770,1740894643224,-500.0,0.00024658,2]
[355103772,1740894643234,-500.0,0.00024658,2]
[355103774,1740894643244,-500.0,0.00024658,2]
[355103775,1740894643254,-500.0,0.00024658,2]
[355103777,1740894643264,-500.0,0.00024658,2]
[355103779,1740894643274,-500.0,0.00024658,2]
[355103781,1740894643284,-500.0,0.00024658,2]
[355103783,1740894643294,-500.0,0.00024658,2]
[355103784,1740894643304,-500.0,0.00024658,2]
[355103786,1740894643314,-500.0,0.00024658,2]
[355103788,1740894643324,-500.0,0.00024658,2]
[355103790,1740894643335,-500.0,0.00024658,2]
[355103791,1740894643345,-500.0,0.00024658,2]
[355103793,1740894643355,-500.0,0.00024658,2]
[355103795,1740894643364,-500.0,0.00024658,2]
[355103797,1740894643374,-500.0,0.00024658,2]
[355103798,1740894643384,-500.0,0.00024658,2]
[355103800,1740894643394,-500.0,0.00024658,2]
[355103802,1740894643404,-500.0,0.00024658,2]
[355103804,1740894643415,-500.0,0.00024658,2]
[355103806,1740894643425,-500.0,0.00024658,2]
[355103807,1740894643435,-500.0,0.00024658,2]
[355103808,1740894643446,-500.0,0.00024658,2]
[355103809,1740894643456,-500.0,0.00024658,2]
[355103810,1740894643466,-226.57894888,0.00024665,2]
[355103811,1740894643476,-174.82,0.000247,7]
[355103812,1740894643487,-500.0,0.00024729,2]
[355103813,1740894643498,-531.87,0.00024729,2]
[355103814,1740894643508,-1260.93,0.00024729,2]
[355103815,1740894643519,-2797.01,0.00024729,2]
[355103816,1740894643528,-1487.55,0.00024729,2]
[355103817,1740894643538,-500.0,0.00024729,2]
[355103818,1740894643548,-558.8,0.00024729,2]
[355103819,1740894643558,-500.0,0.00024729,2]
[355103820,1740894643568,-500.0,0.00024729,2]
[355103821,1740894643579,-1729.44,0.00024729,2]
[355103822,1740894643589,-1716.37,0.00024729,2]
[355103823,1740894643599,-893.33,0.00024729,2]
[355103824,1740894643610,-500.0,0.00024729,2]
[355103825,1740894643620,-780.24,0.00024729,2]
[355103826,1740894643630,-2108.12,0.00024729,2]
[355103827,1740894643641,-500.0,0.00024729,2]
[355103828,1740894643651,-500.0,0.00024729,2]
[355103829,1740894643662,-609.88,0.00024729,2]
[355103830,1740894643672,-500.0,0.00024729,2]
[355103831,1740894643682,-1022.76,0.00024729,2]
[355103832,1740894643692,-528.97,0.00024729,2]
[355103833,1740894643702,-994.48,0.00024729,2]
[355103834,1740894643713,-2091.18,0.00024729,2]
[355103835,1740894643722,-25740.58,0.00024729,2]
[355103836,1740894643732,-2516.16,0.00024729,2]
[355103837,1740894643742,-500.0,0.00024729,2]
[355103838,1740894643752,-500.0,0.00024729,2]
[355103839,1740894643762,-1349.49,0.00024729,2]
[355103840,1740894643772,-500.0,0.00024729,2]
[355103841,1740894643782,-839.47,0.00024729,2]
[355103842,1740894643793,-1236.27,0.00024729,2]
[355103843,1740894643803,-500.0,0.0002473,2]
[355103844,1740894643812,-500.0,0.0002473,2]
[355103845,1740894643822,-500.0,0.0002473,2]
[355103846,1740894643832,-500.0,0.0002473,2]
[355103847,1740894643842,-500.0,0.0002473,2]
[355103848,1740894643855,-500.0,0.0002473,2]
[355103849,1740894643865,-500.0,0.0002473,2]
[355103850,1740894643876,-500.0,0.0002473,2]
[355103851,1740894643886,-488.75,0.0002473,2]
[355103852,1740894643898,-807.94,0.0002473,2]
[355103853,1740894643909,-266.8,0.00024731,2]
[355103854,1740894643919,-3000.0,0.0002478,7]
[355103855,1740894643931,-762318.03640397,0.000248,2]
[355103856,1740894644449,-93.66928076,0.00023084,2]
[355103873,1740895373115,-160.0,0.0002,3]
[355103874,1740895629115,-1905.31855087,0.000189,2]
[355103875,1740895629137,-300.0,0.00021588,2]
[355103876,1740895629159,-4849.92782562,0.00021589,2]
[355103877,1740895639130,-875.87404317,0.00021589,2]
[355103878,1740895752107,-250.355376,0.00021031,2]
[355103879,1740895754141,-300.0,0.00021588,2]
[355103880,1740895754167,-1738.82008996,0.00021589,2]
[355103881,1740895755127,-512.41201424,0.00021589,2]
[355103882,1740895757330,-16922.96602701,0.00021589,2]
[355103883,1740895757355,-4663.0996366,0.00021761,2]
[355103884,1740895757380,-278.14207,0.0002183,2]
[355103885,1740895757405,-2145.0799628,0.00021861,2]
[355103886,1740895757429,-212.22009219,0.000219,3]
[355103887,1740895757457,-1006.47011939,0.000219,2]
[355103888,1740895757481,-500.0,0.00021973,2]
[355103889,1740895757511,-500.0,0.00021973,2]
[355103890,1740895757536,-318.91201458,0.00021999,2]
[355103891,1740895757562,-285.93232508,0.00021999,2]
[355103892,1740895757588,-500.0,0.00021999,2]
[355103893,1740895757616,-500.0,0.00021999,2]
[355103894,1740895757643,-368.91233207,0.00021999,2]
[355103895,1740895764126,-14.39610539,0.00021999,2]
[355103896,1740895764151,-360.68095572,0.00021999,2]
[355103897,1740895764175,-500.0,0.00021999,2]
[355103898,1740895764198,-500.0,0.00021999,2]
[355103899,1740895764223,-500.0,0.00021999,2]
[355103900,1740895764246,-500.0,0.00021999,2]
[355103901,1740895764270,-500.0,0.00021999,2]
[355103902,1740895764294,-500.0,0.00021999,2]
[355103903,1740895764317,-500.0,0.00021999,2]
[355103904,1740895764339,-500.0,0.00021999,2]
[355103905,1740895764364,-500.0,0.00021999,2]
[355103906,1740895764386,-2405.81308692,0.00022,2]
[355103949,1740895832606,-500.0,0.00021973,2]
[355103950,1740895832617,-500.0,0.00021999,2]
[355103951,1740895832627,-300.0,0.00021999,2]
[355103952,1740895832637,-2281.13,0.00021999,2]
[355103953,1740895832648,-514.93,0.00021999,2]
[355103954,1740895832658,-10905.42329797,0.00022,2]
[355103955,1740895832670,-480.81,0.00022,2]
[355103956,1740895832781,-31584.80000198,0.00022,2]
[355103964,1740895838423,-19269.55361313,0.00022,2]
[355103965,1740895838434,-5282.13076632,0.00022,2]
[355103966,1740895838689,-533.56088805,0.00022,2]
[355103967,1740895838701,-58830.70834563,0.00022,2]
[355103968,1740895838711,-64646.4,0.00022,2]
[355103969,1740895838721,-64646.4,0.00022,2]
[355103970,1740895838731,-64646.4,0.00022,2]
[355103971,1740895838741,-64646.4,0.00022,2]
[355103972,1740895838751,-64646.4,0.00022,2]
[355103973,1740895838761,-64646.4,0.00022,2]
[355103974,1740895838771,-64646.4,0.00022,2]
[355103975,1740895838782,-64646.4,0.00022,2]
[355103976,1740895838792,-64646.4,0.00022,2]
[355103977,1740895838802,-64646.4,0.00022,2]
[355103978,1740895838811,-64646.4,0.00022,2]
[355103979,1740895838823,-33123.8,0.00022,2]
[355103980,1740895838834,-205.9,0.00022,7]
[355103981,1740895838843,-3566.4515735,0.00022261,2]
[355103982,1740895838853,-500.0,0.00022261,2]
[355103983,1740895838863,-500.0,0.00022261,2]
[355103984,1740895838873,-500.0,0.00022261,2]
[355103985,1740895838883,-500.0,0.00022261,2]
[355103986,1740895838892,-500.0,0.00022261,2]
[355103987,1740895838902,-500.0,0.00022273,2]
[355103988,1740895838912,-2281.13,0.00022273,2]
[355103989,1740895838922,-514.93,0.00022273,2]
[355103990,1740895838931,-3500.0,0.00022439,2]
[355103991,1740895838942,-500.0,0.00022547,2]
[355103992,1740895838952,-2281.13,0.00022547,2]
[355103993,1740895838962,-514.93,0.00022547,2]
[355103994,1740895838971,-500.0,0.00022821,2]
[355103995,1740895838980,-2281.13,0.00022821,2]
[355103996,1740895838990,-514.93,0.00022821,2]
[355103997,1740895838999,-300.0,0.00023,2]
[355103998,1740895839009,-2046.60863166,0.00023,4]
[355103999,1740895839019,-500.0,0.00023083,2]
[355104000,1740895839029,-566.7,0.00023084,2]
[355104001,1740895839039,-500.0,0.00023084,2]
[355104002,1740895839049,-500.0,0.00023085,2]
[355104003,1740895839059,-500.0,0.00023085,2]
[355104004,1740895839068,-500.0,0.00023085,2]
[355104005,1740895839078,-500.0,0.00023085,2]
[355104006,1740895839088,-500.0,0.00023085,2]
[355104007,1740895839097,-500.0,0.00023085,2]
[355104008,1740895839107,-500.0,0.00023085,2]
[355104009,1740895839117,-500.0,0.00023085,2]
[355104010,1740895839126,-500.0,0.00023085,2]
[355104011,1740895839135,-500.0,0.00023095,2]
[355104012,1740895839144,-2281.13,0.00023095,2]
[355104013,1740895839154,-514.93,0.00023095,2]
[355104014,1740895839164,-151.0,0.000233,6]
[355104015,1740895839173,-413.94028264,0.00023357,2]
[355104016,1740895839183,-538.5,0.00023357,2]
[355104017,1740895839193,-500.0,0.00023357,2]
[355104018,1740895839202,-500.0,0.00023357,2]
[355104019,1740895839211,-500.0,0.00023357,2]
[355104020,1740895839221,-246.38,0.00023357,2]
[355104021,1740895839230,-267.35,0.00023357,2]
[355104022,1740895839241,-500.0,0.00023357,2]
[355104023,1740895839252,-500.0,0.00023357,2]
[355104024,1740895839261,-500.0,0.00023357,2]
[355104025,1740895839271,-232.66,0.00023357,2]
[355104026,1740895839283,-500.0,0.00023357,2]
[355104027,1740895839293,-500.0,0.00023357,2]